bitfinex/quotes_SOLUSD_20251117
["timestamp","ask_amount","ask_price","bid_price","bid_amount"]
[1763403003130,4.6,133.02,133.0,13.55294077]
[1763403003404,50.0,133.03,133.01,13.55294077]
[1763403003615,50.0,133.07,133.02,13.55294077]
[1763403003807,50.0,133.09,133.06,13.55294077]
[1763403004026,50.0,133.11,133.08,13.55294077]
[1763403004234,50.0,133.08,133.06,13.55294077]
[1763403004434,50.1,133.12,133.07,13.55294077]
[1763403004754,0.1,133.12,133.07,0.7]
[1763403004939,0.1,133.12,133.05,9.78882769]
[1763403004940,50.0,133.1,133.05,9.78882769]
[1763403005104,50.0,133.1,133.04,5.3]
[1763403005299,50.0,133.1,133.09,13.55294077]
[1763403005535,4.6,133.11,133.09,13.55294077]
[1763403005836,4.6,133.1,133.06,0.7]
[1763403006042,4.6,133.1,133.09,13.55294077]
[1763403006350,50.1,133.12,133.06,5.3]
[1763403006516,54.7,133.12,133.11,13.55294077]
[1763403007121,4.7,133.12,133.11,13.55294077]
[1763403007318,54.7,133.12,133.11,13.55294077]
[1763403007724,54.7,133.12,133.07,0.7]
[1763403007919,54.7,133.12,133.11,13.55294077]
[1763403008125,0.1,133.12,133.11,13.55294077]
[1763403008321,50.0,133.18,133.11,27.80588154]
[1763403008547,0.4,133.2,133.12,0.7]
[1763403008548,4.6,133.17,133.12,0.7]
[1763403008725,50.5,133.22,133.13,9.78882769]
[1763403008930,50.5,133.22,133.14,0.7]
[1763403008931,50.0,133.18,133.14,0.7]
[1763403009445,4.6,133.2,133.14,0.7]
[1763403009446,4.6,133.19,133.14,0.7]
[1763403009659,4.6,133.19,133.18,13.55294077]
[1763403009821,0.1,133.21,133.18,13.55294077]
[1763403010023,0.1,133.21,133.2,13.55294077]
[1763403010220,18.22096,133.21,133.2,13.55294077]
[1763403010551,0.1,133.21,133.2,13.55294077]
[1763403010850,18.22096,133.21,133.2,13.55294077]
[1763403011030,0.1,133.21,133.2,13.55294077]
[1763403011619,0.1,133.21,133.2,37.54470923]
[1763403011818,0.1,133.21,133.2,23.99176846]
[1763403012323,0.2,133.23,133.21,9.78882769]
[1763403012522,0.2,133.23,133.22,23.34176846]
[1763403013021,0.2,133.23,133.22,13.55294077]
[1763403013220,50.2,133.23,133.18,14.38882769]
[1763403013430,0.2,133.23,133.22,13.55294077]
[1763403013816,0.2,133.23,133.22,14.20294077]
[1763403014019,0.2,133.23,133.22,23.99176846]
[1763403014449,0.2,133.23,133.22,28.59176846]
[1763403015443,0.1,133.24,133.22,28.59176846]
[1763403015651,0.1,133.29,133.26,9.78882769]
[1763403015947,0.1,133.29,133.28,23.34176846]
[1763403016178,0.1,133.29,133.27,4.6]
[1763403016339,0.1,133.29,133.28,13.55294077]
[1763403016840,4.7,133.29,133.27,13.55294077]
[1763403017044,4.7,133.29,133.28,13.55294077]
[1763403017455,0.1,133.29,133.28,13.55294077]
[1763403018065,0.1,133.29,133.21,18.12096]
[1763403018066,50.0,133.28,133.26,13.55294077]
[1763403018275,0.8,133.29,133.22,4.6]
[1763403018276,50.0,133.26,133.22,4.6]
[1763403018440,50.0,133.28,133.25,13.55294077]
[1763403018641,4.6,133.27,133.25,13.55294077]
[1763403018946,50.0,133.25,133.24,8.61968053]
[1763403019148,55.3,133.27,133.24,8.61968053]
[1763403019362,68.12096,133.25,133.2,4.6]
[1763403019659,50.0,133.23,133.21,8.61968053]
[1763403020051,50.0,133.23,133.18,0.69]
[1763403020052,4.6,133.24,133.22,8.61968053]
[1763403020242,18.12096,133.24,133.23,8.61968053]
[1763403022453,4.6,133.27,133.23,9.30968053]
[1763403022648,4.6,133.27,133.26,8.61968053]
[1763403022947,50.0,133.28,133.26,8.61968053]
[1763403022948,4.6,133.28,133.26,8.61968053]
[1763403023160,0.1,133.29,133.27,9.30968053]
[1763403023467,0.1,133.29,133.27,0.69]
[1763403023671,0.1,133.29,133.28,9.30968053]
[1763403023965,0.1,133.29,133.28,8.61968053]
[1763403024271,0.1,133.29,133.28,27.71818875]
[1763403024569,0.1,133.29,133.28,32.31818875]
[1763403025265,2.95595206,133.34,133.33,9.78882769]
[1763403025439,0.1,133.37,133.33,27.02818875]
[1763403025642,0.1,133.37,133.36,17.23936106]
[1763403026141,0.1,133.37,133.36,8.61968053]
[1763403026470,50.0,133.36,133.34,8.61968053]
[1763403026656,5.3,133.35,133.29,9.78882769]
[1763403026853,5.3,133.35,133.32,8.61968053]
[1763403027051,5.3,133.35,133.33,8.61968053]
[1763403027464,50.0,133.36,133.34,8.61968053]
[1763403027772,18.22096,133.37,133.35,8.61968053]
[1763403027773,0.1,133.37,133.35,8.61968053]
[1763403027947,0.1,133.37,133.36,8.61968053]
[1763403028282,0.1,133.37,133.36,17.23936106]
[1763403028463,0.1,133.37,133.36,8.61968053]
[1763403028968,0.1,133.37,133.36,17.92936106]
[1763403029267,0.8,133.37,133.36,8.61968053]
[1763403029451,50.8,133.37,133.32,4.6]
[1763403029766,5.4,133.37,133.36,8.61968053]
[1763403029969,4.7,133.37,133.36,8.61968053]
[1763403030344,5.4,133.37,133.36,8.61968053]
[1763403030783,0.1,133.37,133.36,8.61968053]
[1763403031079,4.7,133.37,133.36,8.61968053]
[1763403031277,0.1,133.37,133.36,8.61968053]
[1763403031582,0.1,133.37,133.36,17.23936106]
[1763403031773,0.1,133.37,133.36,8.61968053]
[1763403032679,0.1,133.37,133.33,14.38882769]
[1763403032882,0.1,133.37,133.36,8.61968053]
[1763403034184,0.1,133.37,133.36,17.92936106]
[1763403034797,0.7,133.43,133.37,9.78882769]
[1763403035008,100.0,133.45,133.42,8.61968053]
[1763403035009,50.7,133.45,133.42,8.61968053]
[1763403035182,50.7,133.45,133.44,8.61968053]
[1763403035183,5.3,133.45,133.44,8.61968053]
[1763403035367,5.3,133.45,133.38,0.69]
[1763403035368,55.3,133.45,133.39,9.78882769]
[1763403035679,55.3,133.45,133.36,31.34064053]
[1763403035680,50.0,133.42,133.4,8.61968053]
[1763403035882,50.0,133.4,133.39,8.61968053]
[1763403036085,50.0,133.4,133.33,4.6]
[1763403036086,54.6,133.4,133.37,8.61968053]
[1763403036292,0.7,133.39,133.37,8.61968053]
[1763403036587,0.7,133.44,133.38,9.30968053]
[1763403036899,5.3,133.44,133.43,8.61968053]
[1763403037059,5.3,133.44,133.38,0.69]
[1763403037260,5.3,133.44,133.43,8.61968053]
[1763403037261,0.7,133.44,133.43,8.61968053]
[1763403037484,5.3,133.44,133.43,8.61968053]
[1763403037690,55.3,133.44,133.43,8.61968053]
[1763403037889,55.3,133.44,133.42,8.61968053]
[1763403038071,0.7,133.44,133.43,8.61968053]
[1763403038389,50.0,133.49,133.43,17.23936106]
[1763403038685,50.7,133.5,133.48,8.61968053]
[1763403038991,50.7,133.5,133.49,8.61968053]
[1763403039197,50.7,133.5,133.42,5.29]
[1763403039364,50.7,133.5,133.49,8.61968053]
[1763403039676,55.3,133.5,133.48,8.61968053]
[1763403039882,55.3,133.5,133.49,8.61968053]
[1763403040082,4.6,133.51,133.49,8.61968053]
[1763403040285,4.6,133.51,133.5,8.61968053]
[1763403040677,5.3,133.51,133.5,8.61968053]
[1763403042086,5.32,133.51,133.5,8.61968053]
[1763403042276,0.72,133.51,133.5,8.61968053]
[1763403042876,0.72,133.51,133.45,0.68]
[1763403043082,0.72,133.51,133.5,8.61968053]
[1763403043293,0.72,133.51,133.42,10.46882769]
[1763403043472,0.72,133.51,133.42,0.68]
[1763403043473,50.0,133.47,133.42,0.68]
[1763403043674,50.0,133.43,133.36,8.61968053]
[1763403043886,50.0,133.43,133.38,8.61968053]
[1763403044091,0.72,133.42,133.28,8.61968053]
[1763403044292,0.72,133.42,133.36,8.61968053]
[1763403044293,4.58,133.41,133.36,8.61968053]
[1763403044602,55.3,133.42,133.38,8.61968053]
[1763403044889,5.3,133.42,133.38,8.61968053]
[1763403045102,50.0,133.39,133.33,0.68]
[1763403045266,50.0,133.39,133.35,8.61968053]
[1763403045467,54.58,133.39,133.35,8.61968053]
[1763403045685,5.3,133.39,133.35,8.61968053]
[1763403045889,55.3,133.39,133.36,8.61968053]
[1763403046107,55.3,133.39,133.34,8.61968053]
[1763403046108,50.0,133.37,133.34,8.61968053]
[1763403046390,50.0,133.35,133.31,8.61968053]
[1763403046571,4.58,133.34,133.28,9.29968053]
[1763403046773,4.58,133.34,133.32,8.61968053]
[1763403047076,0.72,133.34,133.31,8.61968053]
[1763403047274,50.0,133.37,133.33,8.61968053]
[1763403047275,0.72,133.37,133.33,8.61968053]
[1763403047468,0.72,133.39,133.35,8.61968053]
[1763403047794,50.0,133.4,133.36,8.61968053]
[1763403047992,5.3,133.4,133.33,0.68]
[1763403048292,68.12096,133.42,133.37,8.61968053]
[1763403048481,5.3,133.41,133.38,8.61968053]
[1763403048790,50.72,133.41,133.37,8.61968053]
[1763403048992,5.3,133.4,133.37,8.61968053]
[1763403049289,5.3,133.4,133.36,8.61968053]
[1763403049466,55.3,133.4,133.36,8.61968053]
[1763403049667,5.3,133.4,133.37,8.61968053]
[1763403049876,0.72,133.39,133.33,0.68]
[1763403050079,4.58,133.4,133.37,8.61968053]
[1763403050294,0.72,133.39,133.35,8.61968053]
[1763403050472,5.71282229,133.39,133.35,8.61968053]
[1763403050670,5.58681331,133.39,133.34,8.61968053]
[1763403050880,0.72,133.39,133.35,8.61968053]
[1763403051085,4.58,133.38,133.35,8.61968053]
[1763403051566,5.3,133.38,133.35,8.61968053]
[1763403051765,50.0,133.4,133.35,8.61968053]
[1763403051970,5.3,133.39,133.36,8.61968053]
[1763403052499,55.72571386,133.38,133.3,27.90978769]
[1763403052800,55.3,133.38,133.34,8.61968053]
[1763403052980,10.60120356,133.37,133.33,8.61968053]
[1763403053187,9.58414282,133.36,133.32,8.61968053]
[1763403053499,5.00414282,133.35,133.31,8.61968053]
[1763403053694,5.00414282,133.35,133.34,8.61968053]
[1763403053900,54.58,133.35,133.2,8.61968053]
[1763403054080,14.48573193,133.34,133.31,8.61968053]
[1763403054287,5.02045492,133.33,133.31,8.61968053]
[1763403054474,5.02045492,133.33,133.32,8.61968053]
[1763403054673,5.02045492,133.33,133.3,8.61968053]
[1763403055078,5.74045492,133.33,133.3,8.61968053]
[1763403055296,5.02045492,133.32,133.3,8.61968053]
[1763403055497,0.72,133.33,133.31,8.61968053]
[1763403055677,5.03071196,133.32,133.29,8.61968053]
[1763403055879,59.91598897,133.31,133.24,5.26]
[1763403056120,9.91598897,133.3,133.27,8.61968053]
[1763403056413,14.49598897,133.29,133.27,8.61968053]
[1763403056602,5.03071196,133.28,133.27,8.61968053]
[1763403057331,9.91598897,133.29,133.27,8.61968053]
[1763403057516,5.03071196,133.28,133.27,8.61968053]
[1763403058203,50.0,133.31,133.27,9.29968053]
[1763403058204,4.58,133.31,133.27,9.29968053]
[1763403058401,4.90068762,133.32,133.3,8.61968053]
[1763403058609,5.03699468,133.31,133.25,5.26]
[1763403058920,4.90068762,133.32,133.3,8.61968053]
[1763403059089,5.03715772,133.31,133.3,8.61968053]
[1763403059519,4.90068762,133.34,133.3,9.29968053]
[1763403059722,5.3,133.36,133.31,0.68]
[1763403059723,5.04018715,133.33,133.31,0.68]
[1763403059918,4.90068762,133.35,133.29,5.26]
[1763403060114,5.04417952,133.34,133.28,0.68]
[1763403060320,50.0,133.32,133.23,10.46882769]
[1763403060523,9.94486714,133.31,133.24,0.68]
[1763403060697,4.90068762,133.32,133.26,18.12096]
[1763403060899,4.90068762,133.32,133.31,8.61968053]
[1763403061101,9.94057121,133.32,133.31,8.61968053]
[1763403061644,9.94436534,133.32,133.3,8.61968053]
[1763403061944,9.94436534,133.32,133.27,0.68]
[1763403061945,5.75988359,133.31,133.27,8.61968053]
[1763403062161,5.75988359,133.31,133.24,4.6]
[1763403062162,50.0,133.27,133.22,0.68]
[1763403062444,9.94064018,133.26,133.23,8.61968053]
[1763403062625,4.6,133.26,133.23,8.61968053]
[1763403062807,5.32,133.26,133.23,8.61968053]
[1763403063006,0.72,133.25,133.22,8.61968053]
[1763403063321,5.32,133.25,133.22,8.61968053]
[1763403063659,50.0,133.23,133.19,8.61968053]
[1763403063936,0.72,133.24,133.19,8.61968053]
[1763403064136,5.32,133.23,133.19,8.61968053]
[1763403064346,5.32,133.23,133.2,8.61968053]
[1763403064548,4.6,133.24,133.22,8.61968053]
[1763403064906,4.6,133.24,133.18,0.68]
[1763403064907,5.32,133.24,133.18,0.68]
[1763403065130,55.74347334,133.23,133.19,8.61968053]
[1763403065337,0.72,133.23,133.21,8.61968053]
[1763403065506,0.72,133.23,133.2,8.61968053]
[1763403065707,4.6,133.22,133.2,8.61968053]
[1763403065907,54.6,133.22,133.2,8.61968053]
[1763403066109,0.72,133.21,133.2,8.61968053]
[1763403066313,4.6,133.23,133.2,8.61968053]
[1763403066545,5.32,133.23,133.21,8.61968053]
[1763403066746,4.6,133.23,133.21,8.61968053]
[1763403066922,0.72,133.22,133.16,0.68]
[1763403067116,0.72,133.22,133.2,8.61968053]
[1763403068032,4.6,133.21,133.2,8.61968053]
[1763403068336,4.6,133.22,133.2,8.61968053]
[1763403068523,5.32,133.22,133.21,8.61968053]
[1763403068735,50.72,133.25,133.21,8.61968053]
[1763403068933,4.6,133.26,133.2,8.61968053]
[1763403069148,50.0,133.25,133.17,28.58978769]
[1763403069331,50.72,133.25,133.23,8.61968053]
[1763403069525,50.72,133.25,133.18,0.68]
[1763403069526,4.6,133.24,133.18,0.68]
[1763403069739,4.6,133.24,133.23,8.61968053]
[1763403069740,5.32,133.24,133.23,8.61968053]
[1763403069929,5.32,133.24,133.22,8.61968053]
[1763403070160,5.32,133.24,133.23,8.61968053]
[1763403070530,5.32,133.24,133.22,8.61968053]
[1763403071231,50.72,133.23,133.19,8.61968053]
[1763403071429,50.0,133.2,133.17,8.61968053]
[1763403071662,4.6,133.19,133.17,8.61968053]
[1763403071963,5.28,133.19,133.18,8.61968053]
[1763403072734,5.28,133.19,133.17,8.61968053]
[1763403072931,50.0,133.18,133.13,0.87]
[1763403073259,50.0,133.21,133.17,8.61968053]
[1763403073564,54.6,133.21,133.2,8.61968053]
[1763403073745,55.28,133.21,133.2,8.61968053]
[1763403074373,50.68,133.21,133.2,8.61968053]
[1763403074537,50.68,133.21,133.19,8.61968053]
[1763403074732,50.0,133.19,133.18,8.61968053]
[1763403074941,54.6,133.19,133.13,0.87]
[1763403075273,50.0,133.17,133.14,8.61968053]
[1763403075433,50.0,133.17,133.13,0.2]
[1763403075434,4.6,133.16,133.13,8.81968053]
[1763403075640,5.28,133.16,133.14,8.61968053]
[1763403075950,0.68,133.15,133.13,8.81968053]
[1763403076129,4.6,133.14,133.13,8.81968053]
[1763403076834,5.28,133.16,133.13,0.2]
[1763403077038,50.0,133.15,133.13,8.81968053]
[1763403077233,50.68,133.15,133.13,8.81968053]
[1763403077435,4.6,133.16,133.14,8.61968053]
[1763403077634,0.66,133.15,133.14,8.61968053]
[1763403078041,4.6,133.16,133.14,8.61968053]
[1763403078244,4.6,133.16,133.15,8.61968053]
[1763403078742,4.6,133.16,133.15,13.52710684]
[1763403079143,50.0,133.17,133.15,13.52710684]
[1763403079333,4.6,133.17,133.16,13.52710684]
[1763403079534,13.52710684,133.21,133.16,13.52710684]
[1763403079535,50.0,133.22,133.16,13.52710684]
[1763403079835,50.0,133.26,133.21,13.52710684]
[1763403080035,4.6,133.25,133.24,13.52710684]
[1763403080274,50.0,133.24,133.23,13.52710684]
[1763403084055,54.6,133.17,133.15,13.52710684]
[1763403084236,0.66,133.16,133.15,13.52710684]
[1763403084742,0.66,133.16,133.13,0.2]
[1763403084743,50.0,133.15,133.13,0.2]
[1763403085075,54.6,133.15,133.13,13.72710684]
[1763403085241,55.26,133.15,133.13,13.72710684]
[1763403085567,54.6,133.15,133.13,0.2]
[1763403085747,0.66,133.14,133.13,0.2]
[1763403086147,4.6,133.14,133.13,13.72710684]
[1763403087280,4.6,133.14,133.13,0.2]
[1763403087467,5.26,133.14,133.13,0.2]
[1763403087647,4.6,133.14,133.13,13.72710684]
[1763403088262,5.26,133.14,133.13,0.2]
[1763403088873,10.23744436,133.14,133.13,0.2]
[1763403089364,15.10922541,133.14,133.13,0.2]
[1763403089859,38.42515994,133.14,133.13,0.2]
[1763403090059,15.10922541,133.14,133.13,0.2]
[1763403090285,88.42515994,133.14,133.13,0.2]
[1763403090771,50.0,133.08,133.07,0.2]
[1763403091084,54.6,133.08,133.07,0.2]
[1763403091268,55.26,133.08,133.07,0.2]
[1763403092368,22.72096,133.08,133.07,13.72710684]
[1763403092589,18.12096,133.08,133.07,13.72710684]
[1763403093085,68.78096,133.08,133.07,0.2]
[1763403093254,73.75588188,133.08,133.07,0.2]
[1763403094348,101.93735172,133.08,133.07,0.2]
[1763403095273,78.62141719,133.08,133.07,0.2]
[1763403095571,23.0936843,133.08,133.07,13.72710684]
[1763403095772,18.12096,133.08,133.07,13.72710684]
[1763403096275,4.6,133.09,133.07,13.72710684]
[1763403096574,4.6,133.09,133.08,13.52710684]
[1763403096783,50.0,133.08,133.07,13.72710684]
[1763403097077,50.0,133.08,133.07,0.2]
[1763403097492,54.97780412,133.08,133.07,0.2]
[1763403097650,50.0,133.08,133.07,0.2]
[1763403098065,68.12096,133.05,132.99,0.65]
[1763403098284,4.6,133.04,133.03,13.52710684]
[1763403098450,4.6,133.04,133.0,0.65]
[1763403098648,50.0,133.01,132.96,0.65]
[1763403098869,50.0,132.99,132.98,13.52710684]
[1763403099889,54.6,132.99,132.98,13.52710684]
[1763403100251,54.6,132.99,132.97,13.52710684]
[1763403101153,54.6,132.99,132.93,0.85]
[1763403101154,50.0,132.97,132.93,0.85]
[1763403101364,4.6,132.97,132.96,13.52710684]
[1763403101557,50.0,132.99,132.96,13.52710684]
[1763403101772,4.6,133.0,132.98,13.52710684]
[1763403101967,4.6,133.0,132.99,13.52710684]
[1763403102485,50.0,133.06,132.99,14.24710684]
[1763403102665,4.6,133.05,133.0,0.72]
[1763403102876,4.6,133.05,133.04,13.52710684]
[1763403103057,4.6,133.05,133.03,13.52710684]
[1763403103264,0.7,133.07,133.03,13.52710684]
[1763403103265,54.6,133.04,133.03,13.52710684]
[1763403103500,54.6,133.04,133.0,0.72]
[1763403103793,54.6,133.04,133.01,13.52710684]
[1763403104005,4.6,133.03,133.02,13.52710684]
[1763403104361,54.6,133.04,133.02,13.52710684]
[1763403104678,55.3,133.04,132.98,10.50882769]
[1763403104884,55.3,133.04,133.02,13.52710684]
[1763403105059,54.6,133.04,133.02,13.52710684]
[1763403106600,55.3,133.04,132.99,0.72]
[1763403106779,55.3,133.04,133.02,13.52710684]
[1763403106983,54.6,133.04,133.02,13.52710684]
[1763403107576,50.0,133.04,133.02,13.52710684]
[1763403107773,4.6,133.03,133.02,13.52710684]
[1763403108000,18.12096,133.05,133.02,13.52710684]
[1763403108175,18.12096,133.05,132.98,9.78882769]
[1763403108378,18.12096,133.05,133.04,13.52710684]
[1763403108593,22.72096,133.05,133.03,13.52710684]
[1763403108789,50.7,133.04,132.99,0.72]
[1763403108991,4.6,133.03,133.02,13.52710684]
[1763403109692,18.12096,133.05,133.02,13.52710684]
[1763403109915,68.12096,133.05,133.04,13.52710684]
[1763403110195,4.6,133.04,133.03,13.52710684]
[1763403110695,4.6,133.04,133.02,13.52710684]
[1763403110902,50.0,133.03,133.02,13.52710684]
[1763403111087,50.0,133.03,133.01,13.52710684]
[1763403111281,4.6,133.02,133.01,13.52710684]
[1763403112199,5.3,133.02,133.0,13.52710684]
[1763403112498,4.6,133.02,133.0,13.52710684]
[1763403112800,50.0,132.99,132.94,0.72]
[1763403113003,50.0,132.97,132.96,13.52710684]
[1763403113210,50.0,132.97,132.93,0.2]
[1763403113211,50.0,132.95,132.93,0.2]
[1763403113385,4.6,132.94,132.93,13.72710684]
[1763403113700,50.0,132.95,132.93,13.72710684]
[1763403113701,50.0,132.95,132.93,0.2]
[1763403113884,5.3,132.94,132.93,0.2]
[1763403114084,4.6,132.94,132.93,13.72710684]
[1763403114290,18.12096,132.96,132.93,13.72710684]
[1763403114604,4.6,132.95,132.93,0.2]
[1763403114802,50.7,132.97,132.93,0.2]
[1763403115005,5.3,132.96,132.93,0.2]
[1763403115386,50.0,132.95,132.93,0.2]
[1763403115710,4.6,132.94,132.93,0.2]
[1763403115882,4.6,132.94,132.93,13.72710684]
[1763403116295,157.77978769,132.94,132.93,0.2]
[1763403116501,100.0,132.92,132.91,0.2]
[1763403116711,119.38211264,132.92,132.91,0.2]
[1763403117010,124.95168343,132.92,132.91,0.2]
[1763403117380,138.47879027,132.92,132.91,0.2]
[1763403118025,120.35168343,132.92,132.91,0.2]
[1763403118321,110.16957079,132.92,132.91,0.2]
[1763403118609,54.6,132.92,132.91,0.2]
[1763403119108,59.46789629,132.92,132.91,0.2]
[1763403119705,54.6,132.92,132.91,0.2]
[1763403120415,22.57,132.97,132.91,0.2]
[1763403120416,50.7,132.96,132.91,14.44710684]
[1763403120617,4.6,132.95,132.91,14.44710684]
[1763403120915,4.6,132.95,132.92,13.52710684]
[1763403121116,50.0,132.96,132.93,13.52710684]
[1763403121330,50.0,132.98,132.93,0.72]
[1763403121642,0.7,133.01,132.91,13.72710684]
[1763403121643,50.0,132.94,132.91,13.72710684]
[1763403121938,50.0,132.94,132.91,0.2]
[1763403121939,50.0,132.92,132.91,0.2]
[1763403122231,133.17073336,132.92,132.91,0.2]
[1763403122394,127.90978769,132.9,132.89,0.2]
[1763403122595,122.72096,132.9,132.89,0.2]
[1763403123005,72.72096,132.9,132.89,0.2]
[1763403123410,50.0,132.96,132.89,14.44710684]
[1763403123613,54.6,132.96,132.93,13.52710684]
[1763403124511,54.6,132.96,132.91,0.72]
[1763403124512,73.42096,132.96,132.89,0.2]
[1763403124704,50.0,132.91,132.89,0.2]
[1763403124936,4.6,132.9,132.89,0.2]
[1763403125720,83.4796802,132.9,132.89,0.2]
[1763403125919,88.4645822,132.9,132.89,0.2]
[1763403126519,14.44864767,132.9,132.89,0.2]
[1763403126816,4.6,132.9,132.89,0.2]
[1763403127019,50.0,132.93,132.89,14.44710684]
[1763403127322,54.6,132.93,132.9,0.72]
[1763403127623,54.6,132.93,132.91,13.52710684]
[1763403127922,4.6,132.93,132.91,13.52710684]
[1763403128096,4.6,132.93,132.91,14.24710684]
[1763403128291,50.0,132.91,132.89,0.2]
[1763403128609,4.6,132.9,132.89,0.2]
[1763403128816,46.82478926,132.9,132.89,0.2]
[1763403129520,46.12478926,132.9,132.89,0.2]
[1763403129694,88.49265695,132.9,132.89,0.2]
[1763403130095,14.47672242,132.9,132.89,0.2]
[1763403130310,24.10382926,132.9,132.89,0.2]
[1763403130513,94.57139881,132.9,132.89,0.2]
[1763403130719,88.49265695,132.9,132.89,0.2]
[1763403131538,28.70382926,132.9,132.89,0.2]
[1763403131696,9.87672242,132.9,132.89,0.2]
[1763403131899,4.6,132.9,132.89,14.39710684]
[1763403132113,4.6,132.9,132.89,0.2]
[1763403133336,28.68617655,132.9,132.89,0.2]
[1763403133501,94.5537461,132.9,132.89,0.2]
[1763403134006,94.43465129,132.9,132.89,0.2]
[1763403135305,50.0,132.86,132.85,0.2]
[1763403135511,87.81510156,132.86,132.85,0.2]
[1763403135715,18.12096,132.78,132.77,0.2]
[1763403136006,4.6,132.79,132.78,0.67]
[1763403136210,22.72096,132.81,132.78,14.19710684]
[1763403136416,3.88,132.81,132.79,13.52710684]
[1763403136943,4.6,132.81,132.79,13.52710684]
[1763403137116,4.6,132.81,132.8,0.67]
[1763403137446,4.6,132.81,132.77,14.39710684]
[1763403137600,9.48497351,132.81,132.77,0.87]
[1763403137931,4.6,132.81,132.78,14.21710684]
[1763403138131,50.0,132.82,132.79,13.52710684]
[1763403138337,4.6,132.8,132.79,14.21710684]
[1763403139029,4.6,132.8,132.78,8.67882573]
[1763403139204,4.6,132.8,132.79,8.67882573]
[1763403139407,50.0,132.82,132.79,8.67882573]
[1763403139621,68.12096,132.84,132.81,8.67882573]
[1763403139818,4.6,132.83,132.82,0.69]
[1763403140425,4.6,132.83,132.81,8.67882573]
[1763403140627,55.00684827,132.82,132.78,9.36882573]
[1763403140837,4.6,132.81,132.78,9.36882573]
[1763403141128,4.6,132.81,132.79,9.36882573]
[1763403141331,50.0,132.8,132.77,0.2]
[1763403141538,4.6,132.79,132.77,9.56882573]
[1763403142044,4.6,132.79,132.78,9.36882573]
[1763403143151,68.12096,132.82,132.78,9.36882573]
[1763403143316,4.6,132.81,132.77,0.2]
[1763403143517,136.58861342,132.78,132.77,0.2]
[1763403143763,118.46765342,132.76,132.75,0.16]
[1763403143965,132.96675922,132.76,132.75,0.16]
[1763403144248,156.22675922,132.76,132.75,0.16]
[1763403144456,133.65675922,132.76,132.75,0.16]
[1763403145351,129.05675922,132.76,132.75,0.16]
[1763403145568,78.01027442,132.76,132.75,0.16]
[1763403145772,78.01027442,132.76,132.65,18.54737802]
[1763403145773,72.72096,132.76,132.67,18.12096]
[1763403146067,72.72096,132.76,132.68,0.69]
[1763403146068,18.12096,132.7,132.68,0.69]
[1763403146270,18.12096,132.7,132.64,9.98882769]
[1763403146271,4.6,132.69,132.65,0.69]
[1763403146481,54.6,132.69,132.66,8.67882573]
[1763403146683,50.0,132.71,132.68,8.67882573]
[1763403146849,22.72096,132.71,132.7,8.67882573]
[1763403147187,4.6,132.71,132.65,0.69]
[1763403147352,54.6,132.71,132.69,8.67882573]
[1763403147550,50.0,132.73,132.69,8.67882573]
[1763403147765,18.12096,132.73,132.72,8.67882573]
[1763403147963,4.6,132.75,132.72,8.67882573]
[1763403148154,4.6,132.75,132.73,0.69]
[1763403148359,54.6,132.75,132.74,8.67882573]